fUST/lending_fUST_20250717
["ID","MTS","AMOUNT","RATE_DAILY","PERIOD"]
[372797406,1752765745495,-500.0,0.00016515,2]
[372797407,1752765745561,-500.0,0.00016515,2]
[372797408,1752765746039,-500.0,0.00016515,2]
[372797409,1752765746113,-500.0,0.00016515,2]
[372797410,1752765746185,-500.0,0.00016515,2]
[372797411,1752765746255,-500.0,0.00016515,2]
[372797412,1752765746325,-500.0,0.00016515,2]
[372797413,1752765746398,-500.0,0.00016515,2]
[372797414,1752765746480,-500.0,0.00016515,2]
[372797415,1752765746573,-500.0,0.00016515,2]
[372797416,1752765746839,-300.0,0.00016515,2]
[372797417,1752765746919,-500.0,0.00016515,2]
[372797418,1752765747267,-500.0,0.00016515,2]
[372797419,1752765747337,-500.0,0.00016515,2]
[372797420,1752765747406,-500.0,0.00016515,2]
[372797421,1752765747478,-500.0,0.00016515,2]
[372797422,1752765747550,-500.0,0.00016515,2]
[372797423,1752765747633,-500.0,0.00016515,2]
[372797424,1752765747706,-500.0,0.00016515,2]
[372797425,1752765747779,-500.0,0.00016515,2]
[372797426,1752765747852,-459.00807546,0.00016515,2]
[372797427,1752765747936,-500.0,0.00016515,2]
[372797428,1752765748470,-500.0,0.00016515,2]
[372797429,1752765748538,-460.0,0.00016515,2]
[372797430,1752765748608,-500.0,0.00016515,2]
[372797431,1752765748681,-500.0,0.00016515,2]
[372797432,1752765748749,-500.0,0.00016515,2]
[372797433,1752765748827,-500.0,0.00016515,2]
[372797434,1752765748900,-600.0,0.00016515,2]
[372797435,1752765748974,-500.0,0.00016515,2]
[372797436,1752765749056,-500.0,0.00016515,2]
[372797437,1752765749133,-420.0,0.00016515,2]
[372797438,1752765749860,-40.0,0.00016515,2]
[372797439,1752765749927,-460.0,0.00016515,2]
[372797440,1752765749992,-460.0,0.00016515,2]
[372797441,1752765750064,-300.0,0.00016515,2]
[372797442,1752765750144,-460.0,0.00016515,2]
[372797443,1752765750214,-460.0,0.00016515,2]
[372797444,1752765750281,-460.0,0.00016515,2]
[372797445,1752765750348,-460.0,0.00016515,2]
[372797446,1752765750418,-460.0,0.00016515,2]
[372797447,1752765750506,-460.0,0.00016515,2]
[372797448,1752765750573,-460.0,0.00016515,2]
[372797449,1752765750639,-460.0,0.00016515,2]
[372797450,1752765751005,-460.0,0.00016515,2]
[372797451,1752765751079,-460.0,0.00016515,2]
[372797452,1752765751153,-807.3,0.00016515,2]
[372797453,1752765751223,-460.0,0.00016515,2]
[372797454,1752765753161,150.0,0.00014792,2]
[372797455,1752765757011,-460.0,0.00016515,2]
[372797456,1752765827535,-300.0,0.00016513,2]
[372797457,1752765827595,-460.0,0.00016514,2]
[372797458,1752765827654,-460.0,0.00016514,2]
[372797459,1752765827724,-460.0,0.00016514,2]
[372797460,1752765827791,-460.0,0.00016514,2]
[372797461,1752765827857,-500.0,0.00016514,2]
[372797462,1752765827923,-500.0,0.00016514,2]
[372797463,1752765827995,-500.0,0.00016514,2]
[372797464,1752765828061,-500.0,0.00016514,2]
[372797465,1752765828123,-170.99825809,0.00016514,2]
[372797466,1752765828199,-524.85990754,0.00016514,2]
[372797467,1752765828625,-500.0,0.00016514,2]
[372797468,1752765828690,-500.0,0.00016514,2]
[372797469,1752765828751,-361.12742207,0.00016514,2]
[372797470,1752765828812,-288.25270658,0.00016514,2]
[372797471,1752765828876,-500.0,0.00016514,2]
[372797472,1752765828944,-500.0,0.00016514,2]
[372797473,1752765829011,-500.0,0.00016514,2]
[372797474,1752765829078,-500.0,0.00016514,2]
[372797475,1752765829145,-500.0,0.00016514,2]
[372797476,1752765829215,-500.0,0.00016514,2]
[372797477,1752765829284,-201.2397427,0.00016514,2]
[372797478,1752765829868,-298.7602573,0.00016514,2]
[372797479,1752765829931,-500.0,0.00016514,2]
[372797480,1752765829996,-500.0,0.00016514,2]
[372797481,1752765830058,-500.0,0.00016514,2]
[372797482,1752765830120,-301.30565282,0.00016514,2]
[372797483,1752765830180,-460.0,0.00016515,2]
[372797484,1752765830239,-439.89990516,0.00016515,2]
[372797485,1752765830299,-460.0,0.00016515,2]
[372797486,1752765830362,-460.0,0.00016515,2]
[372797487,1752765834570,-460.0,0.00016514,2]
[372797488,1752765836049,1063.0604465,0.00015558,2]
[372797493,1752765842806,-300.0,0.00016514,2]
[372797494,1752765843232,-6804.54078489,0.00016515,2]
[372797495,1752765844211,-10000.0,0.00016515,2]
[372797496,1752765844789,-10000.0,0.00016515,2]
[372797497,1752765845153,-10000.0,0.00016515,2]
[372797498,1752765845620,-2151.27598533,0.00016515,2]
[372797499,1752765845682,-460.0,0.00016516,2]
[372797500,1752765845739,-226.44501998,0.00016516,2]
[372797501,1752765845806,-460.0,0.00016516,2]
[372797502,1752765845874,-460.0,0.00016516,2]
[372797503,1752765845936,-460.0,0.00016516,2]
[372797504,1752765846001,-460.0,0.00016516,2]
[372797505,1752765846061,-143.01415046,0.00016516,2]
[372797506,1752765846385,-358.52968846,0.00016516,2]
[372797507,1752765846451,-460.0,0.00016516,2]
[372797508,1752765846513,-594.19,0.00016516,2]
[372797509,1752765846575,-1157.31,0.00016516,2]
[372797510,1752765846638,-460.0,0.00016518,2]
[372797511,1752765846702,-460.0,0.00016518,2]
[372797512,1752765846770,-460.0,0.00016518,2]
[372797513,1752765846838,-200.24926051,0.00016518,2]
[372797514,1752765846904,-460.0,0.00016518,2]
[372797515,1752765846964,-319.44210206,0.00016518,2]
[372797516,1752765847308,-140.55789794,0.00016518,2]
[372797517,1752765847374,-500.0,0.00016518,2]
[372797518,1752765847435,-217.6566394,0.00016518,2]
[372797519,1752765847493,-460.0,0.00016518,2]
[372797520,1752765847550,-460.0,0.00016518,2]
[372797521,1752765847609,-460.0,0.00016518,2]
[372797522,1752765847667,-460.0,0.00016518,2]
[372797523,1752765847735,-460.0,0.00016518,2]
[372797524,1752765847795,-460.0,0.00016518,2]
[372797525,1752765847856,-462.27940581,0.00016518,2]
[372797526,1752765847923,-460.0,0.00016518,2]
[372797527,1752765847985,-459.0121137,0.00016518,2]
[372797528,1752765848404,-729.15,0.00016515,2]
[372797529,1752765848470,-0.9878863,0.00016518,2]
[372797530,1752765848535,-460.0,0.00016518,2]
[372797531,1752765848595,-460.43832813,0.00016518,2]
[372797532,1752765848659,-460.0,0.00016518,2]
[372797533,1752765848721,-460.0,0.00016518,2]
[372797534,1752765848783,-460.0,0.00016518,2]
[372797535,1752765848847,-460.0,0.00016518,2]
[372797536,1752765848913,-460.0,0.00016518,2]
[372797537,1752765848977,-460.0,0.00016518,2]
[372797538,1752765849040,-541.86479735,0.00016518,2]
[372797539,1752765849470,-464.58283235,0.00016518,2]
[372797540,1752765849536,-460.0,0.00016518,2]
[372797541,1752765849600,-460.0,0.00016518,2]
[372797542,1752765849665,-460.0,0.00016518,2]
[372797543,1752765849728,-461.91597558,0.00016518,2]
[372797544,1752765849790,-460.0,0.00016518,2]
[372797545,1752765849857,-462.41489199,0.00016518,2]
[372797546,1752765849924,-460.0,0.00016518,2]
[372797547,1752765849987,-460.0,0.00016518,2]
[372797548,1752765850055,-460.0,0.00016518,2]
[372797549,1752765850118,-321.67536458,0.00016518,2]
[372797550,1752765850716,-138.821871,0.00016518,2]
[372797551,1752765850780,-460.0,0.00016518,2]
[372797552,1752765850847,-592.99801124,0.00016518,2]
[372797553,1752765850914,-460.0,0.00016518,2]
[372797554,1752765850980,-460.0,0.00016518,2]
[372797555,1752765851045,-460.0,0.00016518,2]
[372797556,1752765851107,-287.29681853,0.00016518,2]
[372797557,1752765851173,-460.0,0.00016518,2]
[372797558,1752765851235,-460.0,0.00016518,2]
[372797559,1752765851296,-460.0,0.00016518,2]
[372797560,1752765851355,-460.0,0.00016518,2]
[372797561,1752765851421,-141.76659846,0.00016518,2]
[372797562,1752765851866,-318.23340154,0.00016518,2]
[372797563,1752765851935,-460.0,0.00016518,2]
[372797564,1752765852003,-460.0,0.00016518,2]
[372797565,1752765852071,-460.0,0.00016518,2]
[372797566,1752765852147,-460.0,0.00016518,2]
[372797567,1752765852223,-460.0,0.00016518,2]
[372797568,1752765852295,-460.0,0.00016518,2]
[372797569,1752765852364,-460.0,0.00016518,2]
[372797570,1752765852427,-460.0,0.00016518,2]
[372797571,1752765852499,-460.0,0.00016518,2]
[372797572,1752765852568,-460.0,0.00016518,2]
[372797573,1752765852900,-460.0,0.00016518,2]
[372797574,1752765852980,-460.0,0.00016518,2]
[372797575,1752765853045,-460.0,0.00016518,2]
[372797576,1752765853110,-460.0,0.00016518,2]
[372797577,1752765853175,-460.0,0.00016518,2]
[372797578,1752765853236,-460.0,0.00016518,2]
[372797579,1752765853301,-532.01646837,0.00016518,2]
[372797580,1752765853363,-485.47295098,0.00016518,2]
[372797581,1752765853421,-277.31442136,0.00016518,2]
[372797582,1752765853480,-460.0,0.00016518,2]
[372797583,1752765853538,-460.0,0.00016518,2]
[372797584,1752765857649,-98.48606968,0.00016518,2]
[372797585,1752765857699,-277.31442136,0.00016518,2]
[372797586,1752765857750,-84.19950896,0.00016518,2]
[372797587,1752765857759,-375.80049104,0.00016518,2]
[372797588,1752765857818,-100.21193346,0.00016518,2]
[372797589,1752765857829,-359.78806654,0.00016518,2]
[372797590,1752765857886,-50.39231858,0.00016518,2]
[372797591,1752765873628,212.81103599,0.00016022,2]
[372797592,1752765873771,150.0,0.00014844,2]
[372797594,1752765953270,693.87326904,0.00016418,2]
[372797600,1752766003556,150.0,0.00014998,2]
[372797602,1752766022121,2516.61535546,0.00015518,2]
[372797603,1752766022154,10000.0,0.00015518,2]
[372797604,1752766022187,10000.0,0.00015518,2]
[372797605,1752766022221,2383.38464454,0.00015518,2]
[372797608,1752766115580,30642.54379335,0.00019,20]
[372797623,1752766215223,607.13911041,0.00016417,2]
[372797660,1752766232158,-241.22202868,0.00016513,2]
[372797661,1752766232168,-300.0,0.00016513,2]
[372797662,1752766232177,-460.0,0.00016514,2]
[372797663,1752766232187,-460.0,0.00016514,2]
[372797664,1752766232197,-460.0,0.00016514,2]
[372797666,1752766232206,-460.0,0.00016514,2]
[372797668,1752766232216,-2983.85,0.00016514,2]
[372797670,1752766232226,-1828.93,0.00016514,2]
[372797671,1752766232235,-460.0,0.00016514,2]
[372797672,1752766232246,-460.0,0.00016514,2]
[372797674,1752766232258,-460.0,0.00016514,2]
[372797675,1752766232268,-460.0,0.00016514,2]
[372797677,1752766232277,-401.81494723,0.00016514,2]
[372797678,1752766232290,-58.18505277,0.00016514,2]
[372797679,1752766232302,-1258.98,0.00016514,2]
[372797680,1752766232311,-1463.03,0.00016514,2]
[372797681,1752766232321,-460.0,0.00016514,2]
[372797682,1752766232332,-961.76,0.00016514,2]
[372797683,1752766232342,-460.0,0.00016514,2]
[372797684,1752766232351,-460.0,0.00016514,2]
[372797685,1752766232361,-460.0,0.00016514,2]
[372797686,1752766232371,-460.0,0.00016514,2]
[372797687,1752766232381,-4.08527669,0.00016515,2]
[372797688,1752766232392,-455.91472331,0.00016515,2]
[372797689,1752766232402,-460.0,0.00016515,2]
[372797690,1752766232411,-86.94103981,0.00016515,2]
[372797700,1752766238111,-460.0,0.00016514,2]
[372797701,1752766238120,-148.92218227,0.00016515,2]
[372797702,1752766238132,-224.13677792,0.00016515,2]
[372797703,1752766238142,-101.24389399,0.00016515,2]
[372797704,1752766238154,-358.75610601,0.00016515,2]
[372797705,1752766238164,-460.0,0.00016515,2]
[372797706,1752766238173,-328.75049399,0.00016515,2]
[372797707,1752766238185,-131.24950601,0.00016515,2]
[372797708,1752766238195,-460.0,0.00016515,2]
[372797709,1752766238205,-460.0,0.00016515,2]
[372797710,1752766238214,-718.56,0.00016515,2]
[372797711,1752766238224,-460.0,0.00016515,2]
[372797712,1752766238233,-460.0,0.00016515,2]
[372797713,1752766238242,-460.0,0.00016515,2]
[372797714,1752766238255,-460.0,0.00016515,2]
[372797715,1752766238266,-460.0,0.00016515,2]
[372797716,1752766238275,-460.0,0.00016515,2]
[372797717,1752766238286,-460.0,0.00016515,2]
[372797718,1752766238296,-460.0,0.00016515,2]
[372797719,1752766238306,-460.0,0.00016515,2]
[372797720,1752766238315,-460.0,0.00016515,2]
[372797721,1752766238325,-744.98,0.00016516,2]
[372797722,1752766238335,-460.0,0.00016516,2]
[372797723,1752766238346,-44.74342626,0.00016516,2]
[372797724,1752766238358,-415.25657374,0.00016516,2]
[372797725,1752766238367,-460.0,0.00016516,2]
[372797726,1752766238377,-500.0,0.00016516,2]
[372797727,1752766238387,-500.0,0.00016516,2]
[372797728,1752766238398,-500.0,0.00016516,2]
[372797729,1752766238407,-506.28923426,0.00016516,2]
[372797730,1752766238417,-460.0,0.00016517,2]
[372797731,1752766238426,-527.35429661,0.00016517,2]
[372797732,1752766238435,-580.02764968,0.00016517,2]
[372797733,1752766238445,-460.0,0.00016517,2]
[372797734,1752766238455,-460.0,0.00016517,2]
[372797735,1752766238464,-460.0,0.00016517,2]
[372797736,1752766238474,-460.0,0.00016517,2]
[372797737,1752766238484,-220.50658624,0.00016517,2]
[372797738,1752766238494,-543.38,0.00016517,2]
[372797739,1752766238505,-500.0,0.00016517,2]
[372797740,1752766238515,-500.0,0.00016517,2]
[372797741,1752766238524,-464.63392845,0.00016517,2]
[372797742,1752766238535,-500.0,0.00016517,2]
[372797743,1752766238544,-500.0,0.00016517,2]
[372797744,1752766238554,-500.0,0.00016517,2]
[372797745,1752766238564,-500.0,0.00016517,2]
[372797746,1752766238573,-500.0,0.00016517,2]
[372797747,1752766238582,-500.0,0.00016517,2]
[372797748,1752766238592,-323.27418709,0.00016517,2]
[372797749,1752766238603,-460.0,0.00016517,2]
[372797750,1752766238614,-460.0,0.00016517,2]
[372797751,1752766238624,-1115.36,0.00016517,2]
[372797752,1752766238635,-496.29,0.00016517,2]
[372797753,1752766238645,-460.0,0.00016518,2]
[372797754,1752766238655,-460.0,0.00016518,2]
[372797755,1752766238664,-460.0,0.00016518,2]
[372797756,1752766238673,-460.0,0.00016518,2]
[372797757,1752766238683,-460.0,0.00016518,2]
[372797758,1752766238693,-481.00048159,0.00016518,2]
[372797759,1752766238702,-460.0,0.00016518,2]
[372797760,1752766238712,-460.0,0.00016518,2]
[372797761,1752766238721,-460.0,0.00016518,2]
[372797762,1752766238731,-477.58120978,0.00016518,2]
[372797763,1752766238741,-460.0,0.00016518,2]
[372797764,1752766238752,-460.0,0.00016518,2]
[372797765,1752766238762,-460.0,0.00016518,2]
[372797766,1752766238771,-460.0,0.00016518,2]
[372797767,1752766238782,-460.0,0.00016518,2]
[372797768,1752766238793,-460.0,0.00016518,2]
[372797769,1752766238802,-460.0,0.00016518,2]
[372797770,1752766238814,-460.0,0.00016518,2]
[372797771,1752766238825,-460.0,0.00016518,2]
[372797772,1752766238835,-460.0,0.00016518,2]
[372797773,1752766238846,-460.0,0.00016518,2]
[372797774,1752766238857,-460.0,0.00016518,2]
[372797775,1752766238868,-460.0,0.00016518,2]
[372797776,1752766238879,-404.36851286,0.00016518,2]
[372797777,1752766238889,-460.0,0.00016518,2]
[372797778,1752766238899,-460.0,0.00016518,2]
[372797779,1752766238908,-460.0,0.00016518,2]
[372797780,1752766238918,-460.0,0.00016518,2]
[372797781,1752766238928,-460.0,0.00016518,2]
[372797782,1752766238937,-460.0,0.00016518,2]
[372797783,1752766238947,-460.0,0.00016518,2]
[372797784,1752766238956,-463.69884253,0.00016518,2]
[372797785,1752766238966,-460.0,0.00016518,2]
[372797786,1752766238975,-479.47087374,0.00016518,2]
[372797787,1752766238985,-460.0,0.00016518,2]
[372797788,1752766238995,-460.0,0.00016518,2]
[372797789,1752766239007,-460.0,0.00016518,2]
[372797790,1752766239017,-460.36547616,0.00016518,2]
[372797791,1752766239026,-2745.02,0.00016518,2]
[372797792,1752766239036,-460.0,0.00016518,2]
[372797793,1752766239046,-460.0,0.00016518,2]
[372797794,1752766239055,-561.75771539,0.00016518,2]
[372797795,1752766239066,-799.63,0.00016518,2]
[372797796,1752766239075,-460.0,0.00016518,2]
[372797797,1752766239085,-460.0,0.00016518,2]
[372797798,1752766239095,-460.0,0.00016518,2]
[372797799,1752766239104,-460.0,0.00016518,2]
[372797800,1752766239114,-542.47277808,0.00016518,2]
[372797801,1752766239124,-460.0,0.00016518,2]
[372797802,1752766239134,-461.51290468,0.00016518,2]
[372797803,1752766239143,-465.45660101,0.00016518,2]
[372797804,1752766239153,-460.0,0.00016518,2]
[372797805,1752766239162,-460.0,0.00016518,2]
[372797806,1752766239171,-460.0,0.00016518,2]
[372797807,1752766239181,-460.0,0.00016518,2]
[372797808,1752766239190,-460.0,0.00016518,2]
[372797809,1752766239200,-460.0,0.00016518,2]
[372797810,1752766239209,-460.0,0.00016518,2]
[372797811,1752766239219,-460.0,0.00016518,2]
[372797812,1752766239228,-460.0,0.0001652,2]
[372797813,1752766239238,-460.0,0.0001652,2]
[372797814,1752766239248,-460.0,0.0001652,2]
[372797815,1752766239264,-460.0,0.0001652,2]
[372797816,1752766239273,-460.0,0.0001652,2]
[372797817,1752766239284,-270.5954197,0.0001652,2]
[372797818,1752766239294,-460.0,0.0001652,2]
[372797819,1752766239304,-460.0,0.00016521,2]
[372797820,1752766239314,-470.28413226,0.00016521,2]
[372797821,1752766239324,-517.09736448,0.00016673,2]
[372797822,1752766239336,-912.02,0.00016682,3]
[372797823,1752766239347,-456.01,0.00016682,3]
[372797824,1752766239356,-228.01,0.00016682,3]
[372797825,1752766239366,-684.04,0.00016682,3]
[372797826,1752766239376,-9278.88606984,0.00016689,2]
[372797827,1752766239386,-500.0,0.00016691,2]
[372797828,1752766239395,-500.0,0.00016691,2]
[372797829,1752766239406,-500.0,0.00016691,2]
[372797830,1752766239415,-500.0,0.00016691,2]
[372797831,1752766239425,-500.0,0.00016691,2]
[372797832,1752766239434,-500.0,0.00016691,2]
[372797833,1752766239444,-500.0,0.00016691,2]
[372797834,1752766239454,-500.0,0.00016691,2]
[372797835,1752766239463,-500.0,0.00016691,2]
[372797836,1752766239473,-169559.16827617,0.00016692,2]
[372797837,1752766239482,-2047.69341319,0.00016694,2]
[372797838,1752766239492,-500.0,0.00016773,2]
[372797839,1752766239505,-500.0,0.00016773,2]
[372797840,1752766239515,-500.3859121,0.00016773,2]
[372797841,1752766239524,-514.27559601,0.00016773,2]
[372797842,1752766239534,-500.0,0.00016773,2]
[372797843,1752766239543,-500.0,0.00016773,2]
[372797844,1752766239553,-500.0,0.00016773,2]
[372797845,1752766239563,-460.0,0.00016788,2]
[372797846,1752766239573,-460.0,0.00016788,2]
[372797847,1752766239583,-460.0,0.00016788,2]
[372797848,1752766239593,-460.0,0.00016788,2]
[372797849,1752766239603,-460.0,0.00016788,2]
[372797850,1752766239612,-2983.85,0.00016788,2]
[372797851,1752766239622,-1828.93,0.00016788,2]
[372797852,1752766239632,-460.0,0.00016788,2]
[372797853,1752766239642,-500.0,0.00016788,2]
[372797854,1752766239651,-460.0,0.00016788,2]
[372797855,1752766239660,-460.0,0.00016788,2]
[372797856,1752766239670,-460.0,0.00016788,2]
[372797857,1752766239679,-1258.98,0.00016788,2]
[372797858,1752766239689,-1463.03,0.00016788,2]
[372797859,1752766239699,-460.0,0.00016788,2]
[372797860,1752766239708,-961.76,0.00016788,2]
[372797861,1752766239718,-460.0,0.00016788,2]
[372797863,1752766239728,-460.0,0.00016788,2]
[372797865,1752766239738,-460.0,0.00016788,2]
[372797866,1752766239747,-460.0,0.00016788,2]
[372797868,1752766239759,-460.0,0.00016789,2]
[372797869,1752766239769,-460.0,0.00016789,2]
[372797870,1752766239778,-460.0,0.00016789,2]
[372797871,1752766239788,-460.0,0.00016789,2]
[372797872,1752766239797,-406.0158418,0.00016789,2]
[372797873,1752766239807,-460.0,0.00016789,2]
[372797874,1752766239817,-460.0,0.00016789,2]
[372797875,1752766239826,-460.0,0.00016789,2]
[372797876,1752766239836,-460.0,0.00016789,2]
[372797877,1752766239845,-460.0,0.00016789,2]
[372797878,1752766239855,-460.0,0.00016789,2]
[372797879,1752766239865,-373.91665487,0.00016789,2]
[372797880,1752766239875,-460.0,0.00016789,2]
[372797881,1752766239884,-460.0,0.00016789,2]
[372797882,1752766239894,-460.0,0.00016789,2]
[372797883,1752766239904,-460.0,0.00016789,2]
[372797884,1752766239914,-460.0,0.00016789,2]
[372797885,1752766239924,-460.0,0.00016789,2]
[372797886,1752766239933,-460.0,0.00016789,2]
[372797887,1752766239943,-461.72932056,0.00016789,2]
[372797888,1752766239953,-460.0,0.00016789,2]
[372797889,1752766239963,-460.0,0.00016789,2]
[372797890,1752766239974,-460.0,0.00016789,2]
[372797891,1752766239983,-460.0,0.00016789,2]
[372797893,1752766239993,-460.0,0.00016789,2]
[372797895,1752766240006,-460.0,0.00016789,2]
[372797896,1752766240015,-409.9239532,0.00016789,2]
[372797897,1752766240025,-460.0,0.00016789,2]
[372797898,1752766240035,-460.0,0.00016789,2]
[372797899,1752766240044,-460.0,0.00016789,2]
[372797900,1752766240054,-460.0,0.00016789,2]
[372797901,1752766240064,-460.0,0.00016789,2]
[372797902,1752766240074,-460.0,0.00016789,2]
[372797903,1752766240085,-460.0,0.00016789,2]
[372797904,1752766240095,-460.0,0.00016789,2]
[372797905,1752766240105,-460.0,0.00016789,2]
[372797907,1752766240115,-460.0,0.00016789,2]
[372797909,1752766240124,-460.0,0.00016789,2]
[372797911,1752766240133,-599.70286847,0.00016789,2]
[372797928,1752766240143,-460.0,0.00016789,2]
[372797930,1752766240306,-460.0,0.00016789,2]
[372797932,1752766240316,-460.0,0.00016789,2]
[372797935,1752766240326,-460.0,0.00016789,2]
[372797938,1752766240337,-460.0,0.00016789,2]
[372797940,1752766240347,-462.60134059,0.00016789,2]
[372797942,1752766240357,-460.0,0.00016789,2]
[372797945,1752766240367,-460.0,0.00016789,2]
[372797948,1752766240376,-460.0,0.00016789,2]
[372797950,1752766240386,-460.0,0.00016789,2]
[372797952,1752766240395,-460.0,0.00016789,2]
[372797954,1752766240405,-460.0,0.00016789,2]
[372797956,1752766240414,-460.0,0.00016789,2]
[372797958,1752766240423,-460.0,0.00016789,2]
[372797960,1752766240433,-460.0,0.00016789,2]
[372797963,1752766240442,-460.0,0.00016789,2]
[372797965,1752766240451,-460.0,0.00016789,2]
[372797967,1752766240461,-460.0,0.00016789,2]
[372797968,1752766240470,-460.0,0.00016789,2]
[372797970,1752766240479,-460.0,0.00016789,2]
[372797972,1752766240489,-464.90036471,0.00016789,2]
[372797974,1752766240502,-188.25214472,0.00016789,2]
[372797975,1752766240511,-460.0,0.00016789,2]
[372797976,1752766240521,-460.0,0.00016789,2]
[372797977,1752766240531,-460.0,0.00016789,2]
[372797978,1752766240540,-460.0,0.00016789,2]
[372797979,1752766240550,-460.0,0.00016789,2]
[372797980,1752766240559,-460.0,0.00016789,2]
[372797981,1752766240569,-460.0,0.00016789,2]
[372797982,1752766240579,-460.0,0.00016789,2]
[372797983,1752766240588,-460.0,0.00016789,2]
[372797984,1752766240598,-460.0,0.00016789,2]
[372797985,1752766240607,-460.0,0.00016789,2]
[372797986,1752766240617,-460.0,0.00016789,2]
[372797987,1752766240627,-460.0,0.00016789,2]
[372797988,1752766240636,-460.0,0.00016789,2]
[372797989,1752766240646,-468.16442136,0.00016789,2]
[372797990,1752766240655,-460.0,0.00016789,2]
[372797991,1752766240665,-460.0,0.00016789,2]
[372797992,1752766240675,-460.0,0.00016789,2]
[372797993,1752766240685,-460.0,0.00016789,2]
[372797994,1752766240695,-460.0,0.00016789,2]
[372797995,1752766240704,-460.0,0.00016789,2]
[372797996,1752766240714,-460.0,0.00016789,2]
[372797997,1752766240723,-460.0,0.00016789,2]
[372797998,1752766240732,-460.0,0.00016789,2]
[372797999,1752766240742,-460.0,0.00016789,2]
[372798000,1752766240754,-460.0,0.00016789,2]
[372798001,1752766240763,-718.56,0.00016789,2]
[372798002,1752766240772,-460.0,0.00016789,2]
[372798003,1752766240781,-460.0,0.00016789,2]
[372798004,1752766240790,-460.0,0.00016789,2]
[372798005,1752766240799,-460.0,0.00016789,2]
[372798007,1752766240809,-460.0,0.00016789,2]
[372798008,1752766240818,-460.0,0.00016789,2]
[372798010,1752766240828,-460.0,0.00016789,2]
[372798012,1752766240838,-461.78145526,0.00016789,2]
[372798014,1752766240848,-460.0,0.00016789,2]
[372798016,1752766240857,-460.0,0.00016789,2]
[372798018,1752766240868,-463.23745076,0.00016789,2]
[372798020,1752766240877,-460.0,0.00016789,2]
[372798022,1752766240887,-460.0,0.00016789,2]
[372798024,1752766240897,-460.0,0.00016789,2]
[372798026,1752766240907,-460.0,0.00016789,2]
[372798028,1752766240916,-460.0,0.00016789,2]
[372798030,1752766240925,-460.0,0.00016789,2]
[372798032,1752766240935,-2624.14,0.00016789,2]
[372798034,1752766240944,-460.0,0.00016789,2]
[372798036,1752766240954,-460.0,0.00016789,2]
[372798038,1752766240964,-460.0,0.0001679,2]
[372798040,1752766240973,-460.0,0.0001679,2]
[372798042,1752766240982,-460.0,0.0001679,2]
[372798044,1752766240992,-460.0,0.0001679,2]
[372798046,1752766241004,-460.0,0.0001679,2]
[372798048,1752766241013,-462.40806573,0.0001679,2]
[372798049,1752766241022,-461.57263422,0.0001679,2]
[372798052,1752766241032,-460.0,0.0001679,2]
[372798053,1752766241043,-460.0,0.0001679,2]
[372798055,1752766241053,-460.0,0.0001679,2]